bitfinex-derivatives/quotes_BTCF0:USTF0_20241003
["timestamp","ask_amount","ask_price","bid_price","bid_amount"]
[1727962181165,0.04293814,60547.0,60546.0,0.082594]
[1727962181363,0.05693814,60547.0,60546.0,0.083594]
[1727962181564,0.15353014,60547.0,60546.0,0.002]
[1727962182065,0.59352902,60547.0,60546.0,0.002]
[1727962182267,0.59352902,60547.0,60533.0,0.09677781]
[1727962182268,0.082599,60543.0,60533.0,0.08508881]
[1727962182577,0.082607,60536.0,60534.0,0.08261]
[1727962182864,0.14810475,60544.0,60533.0,0.00247781]
[1727962183058,0.082594,60546.0,60545.0,0.082595]
[1727962183567,0.082594,60546.0,60534.0,0.08261]
[1727962183568,0.082597,60544.0,60542.0,0.082599]
[1727962184172,0.01647863,60547.0,60543.0,0.082598]
[1727962184366,0.00847863,60547.0,60543.0,0.082598]
[1727962184569,0.00247863,60547.0,60543.0,0.082598]
[1727962185063,0.007,60544.0,60543.0,0.082598]
[1727962185461,0.17910977,60544.0,60543.0,0.082598]
[1727962185862,0.04746085,60544.0,60543.0,0.082598]
[1727962186273,0.04646085,60544.0,60543.0,0.083598]
[1727962186473,0.12905703,60544.0,60543.0,0.001]
[1727962186660,0.006,60544.0,60543.0,0.083598]
[1727962186861,0.006,60544.0,60543.0,0.001]
[1727962187863,0.014,60544.0,60543.0,0.083598]
[1727962188367,0.017,60544.0,60543.0,0.083598]
[1727962188576,0.017,60544.0,60543.0,0.001]
[1727962188577,0.099596,60544.0,60543.0,0.001]
[1727962188770,0.018,60544.0,60543.0,0.002]
[1727962189075,0.098596,60544.0,60543.0,0.002]
[1727962189665,0.099596,60544.0,60543.0,0.002]
[1727962190173,1.54460276,60544.0,60543.0,0.002]
[1727962190378,0.08261,60534.0,60533.0,0.00247781]
[1727962191263,0.57821,60534.0,60520.0,0.3608]
[1727962191471,0.57821,60534.0,60518.0,0.082632]
[1727962191472,0.29,60525.0,60518.0,0.00084]
[1727962191770,0.29,60520.0,60515.0,0.36164]
[1727962191969,0.29,60520.0,60516.0,0.082635]
[1727962192175,0.082622,60526.0,60521.0,0.082627]
[1727962192363,0.082623,60525.0,60521.0,0.082627]
[1727962192564,0.083623,60525.0,60517.0,0.082632]
[1727962192760,0.082631,60519.0,60515.0,0.3608]
[1727962192963,0.082631,60519.0,60518.0,0.001]
[1727962193670,0.082631,60519.0,60515.0,0.3608]
[1727962194168,0.005,60525.0,60516.0,0.001]
[1727962194169,0.009,60520.0,60516.0,0.001]
[1727962194362,0.082633,60517.0,60516.0,0.001]
[1727962194570,0.082625,60523.0,60500.0,0.16656359]
[1727962194767,0.3608,60524.0,60500.0,0.16656359]
[1727962194768,0.093631,60519.0,60518.0,0.001]
[1727962194968,0.383631,60519.0,60518.0,0.001]
[1727962195275,0.082633,60517.0,60516.0,0.001]
[1727962195773,0.082643,60510.0,60505.0,0.281149]
[1727962195966,0.743231,60519.0,60505.0,0.281149]
[1727962195967,0.752431,60519.0,60508.0,0.082646]
[1727962196162,0.082637,60515.0,60509.0,0.082643]
[1727962196365,0.082637,60515.0,60505.0,0.1985]
[1727962196366,0.088633,60517.0,60516.0,0.001]
[1727962197464,0.015,60517.0,60516.0,1.470355]
[1727962197972,0.00852219,60517.0,60516.0,1.470355]
[1727962198368,0.01878836,60532.0,60529.0,0.082616]
[1727962198575,0.01878836,60532.0,60527.0,0.08262]
[1727962198576,0.082616,60530.0,60527.0,0.08262]
[1727962198770,0.01878836,60532.0,60530.0,0.082615]
[1727962199081,0.3608,60537.0,60524.0,0.29]
[1727962199082,0.08261,60535.0,60531.0,0.082614]
[1727962199265,0.082615,60531.0,60527.0,0.082619]
[1727962199468,0.082611,60534.0,60530.0,0.082615]
[1727962199672,0.082611,60534.0,60532.0,0.082613]
[1727962199965,0.082599,60543.0,60533.0,0.29]
[1727962200165,0.1026,60548.0,60539.0,0.29]
[1727962200380,0.04047089,60547.0,60546.0,0.082594]
[1727962200681,0.0038,60554.0,60540.0,0.082601]
[1727962200682,0.082589,60550.0,60540.0,0.082601]
[1727962200880,0.29,60552.0,60533.0,0.082611]
[1727962200881,0.29,60542.0,60533.0,0.082611]
[1727962201174,0.004,60543.0,60542.0,0.082599]
[1727962201391,0.082604,60539.0,60535.0,0.082608]
[1727962201674,0.082602,60540.0,60530.0,0.3608]
[1727962201880,0.082599,60543.0,60531.0,0.082614]
[1727962202179,0.29,60537.0,60525.0,0.0975]
[1727962202369,0.29,60537.0,60516.0,0.082634]
[1727962202370,0.082625,60523.0,60518.0,0.00331834]
[1727962202674,0.078831,60519.0,60518.0,0.00247834]
[1727962202877,0.08263,60520.0,60518.0,0.00247834]
[1727962203180,0.37944625,60526.0,60518.0,0.00247834]
[1727962203181,0.3608,60526.0,60518.0,0.00247834]
[1727962203479,0.3608,60526.0,60525.0,0.082622]
[1727962203684,0.04047541,60526.0,60525.0,0.44]
[1727962203975,0.15058393,60535.0,60525.0,0.44]
[1727962203976,0.14807855,60535.0,60525.0,1.53564]
[1727962204174,0.14808147,60537.0,60536.0,0.082607]
[1727962204479,0.14808147,60537.0,60534.0,0.56]
[1727962204480,0.082609,60535.0,60534.0,0.56]
[1727962204777,0.04047141,60535.0,60534.0,0.08261]
[1727962205077,0.04047141,60535.0,60534.0,0.4956]
[1727962205276,0.04047141,60535.0,60534.0,1.13821]
[1727962205779,0.16328314,60543.0,60530.0,0.3608]
[1727962205780,0.082604,60539.0,60530.0,0.3608]
[1727962205966,0.082616,60530.0,60510.0,0.44]
[1727962206171,0.09120655,60529.0,60512.0,0.2926]
[1727962206476,0.04047295,60528.0,60512.0,0.2926]
[1727962206677,0.082631,60520.0,60518.0,0.08511034]
[1727962206977,0.44,60531.0,60527.0,0.08262]
[1727962206978,0.14806498,60528.0,60527.0,0.08262]
[1727962207177,0.14806498,60528.0,60527.0,0.57826]
[1727962207178,0.04047503,60528.0,60527.0,0.57826]
[1727962207385,0.04047503,60528.0,60527.0,1.17826]
[1727962207574,0.16328314,60535.0,60534.0,0.08261]
[1727962207783,0.040472,60535.0,60534.0,0.08261]
[1727962208678,0.040472,60535.0,60521.0,0.56]
[1727962208980,0.040472,60535.0,60518.0,0.00247834]
[1727962208981,0.23927015,60534.0,60518.0,0.00247834]
[1727962209178,0.23168298,60528.0,60518.0,0.00247834]
[1727962209383,0.082629,60520.0,60518.0,0.00247834]
[1727962209677,0.082629,60520.0,60518.0,0.08510934]
[1727962209880,0.001,60528.0,60518.0,0.00247834]
[1727962210174,0.082624,60524.0,60518.0,0.00247834]
[1727962210376,0.082624,60524.0,60522.0,0.082626]
[1727962210573,0.001,60528.0,60523.0,0.082624]
[1727962210775,0.082618,60529.0,60524.0,0.082624]
[1727962211081,0.082618,60529.0,60521.0,0.01]
[1727962211082,0.0992,60534.0,60521.0,0.01]
[1727962211279,0.082626,60522.0,60521.0,0.01]
[1727962211574,0.44,60523.0,60519.0,0.002]
[1727962211777,0.005,60524.0,60519.0,0.002]
[1727962211778,0.087624,60524.0,60519.0,0.002]
[1727962211979,0.005,60524.0,60523.0,0.082625]
[1727962212168,0.082621,60526.0,60524.0,0.001]
[1727962212367,0.011,60529.0,60524.0,0.001]
[1727962212877,0.082622,60525.0,60524.0,0.001]
[1727962213273,0.006,60529.0,60524.0,0.001]
[1727962213574,0.006,60529.0,60528.0,0.082618]
[1727962213778,0.04048032,60533.0,60532.0,0.082613]
[1727962214678,0.14806498,60546.0,60533.0,0.082611]
[1727962214679,0.082594,60546.0,60533.0,0.082611]
[1727962214880,0.14806498,60550.0,60531.0,0.3608]
[1727962215075,0.14806498,60550.0,60531.0,0.082613]
[1727962215076,0.08261,60535.0,60531.0,0.082613]
[1727962215283,0.082602,60540.0,60526.0,0.3608]
[1727962215584,0.004,60533.0,60531.0,0.082613]
[1727962215970,0.004,60533.0,60532.0,0.082613]
[1727962216291,0.006,60533.0,60510.0,0.3608]
[1727962216579,0.0947,60532.0,60510.0,0.3608]
[1727962216786,0.44,60523.0,60510.0,0.3608]
[1727962216972,0.082631,60519.0,60511.0,0.08264]
[1727962217177,0.082631,60519.0,60510.0,0.3608]
[1727962217387,0.23069598,60519.0,60510.0,0.3608]
[1727962217581,0.082631,60519.0,60510.0,0.3608]
[1727962217777,0.082631,60519.0,60518.0,0.00247834]
[1727962218085,0.05073685,60519.0,60518.0,0.019]
[1727962218294,0.16467106,60519.0,60518.0,0.019]
[1727962218486,0.05073685,60519.0,60518.0,0.01]
[1727962218787,0.006,60519.0,60518.0,0.01]
[1727962218985,0.17071362,60519.0,60518.0,0.01]
[1727962219378,0.22145047,60519.0,60518.0,0.532632]
[1727962219683,0.17961146,60525.0,60524.0,0.082624]
[1727962219885,0.3608,60543.0,60524.0,0.522624]
[1727962219886,0.16471362,60532.0,60524.0,0.522624]
[1727962220087,0.16471362,60532.0,60531.0,0.082614]
[1727962220284,0.16471362,60532.0,60531.0,0.642614]
[1727962220680,0.17961146,60536.0,60533.0,0.082611]
[1727962220887,0.18209056,60535.0,60534.0,0.08261]
[1727962221086,0.16480835,60535.0,60534.0,0.64261]
[1727962221386,0.00490835,60541.0,60534.0,1.73821]
[1727962221693,0.17961146,60547.0,60537.0,0.44]
[1727962221989,0.17961146,60549.0,60548.0,0.082591]
[1727962222485,0.17961146,60553.0,60548.0,1.618071]
[1727962222674,0.17961146,60553.0,60552.0,0.082586]
[1727962222876,0.05927491,60565.0,60553.0,0.082584]
[1727962222877,0.17961146,60554.0,60553.0,0.082584]
[1727962223077,0.17961146,60556.0,60555.0,0.082581]
[1727962223389,0.17961146,60557.0,60556.0,0.08258]
[1727962223591,0.17961146,60558.0,60557.0,0.082579]
[1727962223899,0.17961146,60558.0,60557.0,1.043379]
[1727962224075,0.17961146,60558.0,60557.0,0.443379]
[1727962224481,0.26218846,60558.0,60557.0,0.3608]
[1727962224691,0.13330289,60558.0,60557.0,0.3608]
[1727962225188,0.13330261,60558.0,60557.0,0.3608]
[1727962225582,0.05072561,60558.0,60557.0,0.3608]
[1727962225784,0.08256,60571.0,60564.0,0.082569]
[1727962225985,0.004,60558.0,60557.0,0.444379]
[1727962226186,0.004,60558.0,60557.0,0.445379]
[1727962226692,0.004,60558.0,60557.0,0.940779]
[1727962226897,0.004,60558.0,60557.0,1.540779]
[1727962227085,0.082561,60570.0,60569.0,0.082562]
[1727962227392,0.04046399,60570.0,60569.0,0.082562]
[1727962227778,0.084561,60571.0,60569.0,0.082562]
[1727962227995,0.084561,60571.0,60565.0,0.082568]
[1727962228196,0.084561,60571.0,60570.0,0.082561]
[1727962228494,0.084561,60571.0,60564.0,0.001]
[1727962228495,0.002,60571.0,60564.0,0.001]
[1727962228685,0.44,60570.0,60564.0,0.001]
[1727962228994,0.082576,60561.0,60560.0,0.082575]
[1727962229579,0.082576,60561.0,60557.0,0.3618]
[1727962229580,0.082577,60558.0,60557.0,0.3618]
[1727962229789,0.082567,60566.0,60557.0,0.3618]
[1727962230087,0.083561,60570.0,60568.0,0.082563]
[1727962230289,0.004,60570.0,60561.0,0.44]
[1727962230593,0.004,60570.0,60569.0,0.082562]
[1727962231384,0.003,60570.0,60569.0,0.082562]
[1727962231891,0.003,60570.0,60569.0,1.538642]
[1727962232081,0.3608,60588.0,60587.0,0.082538]
[1727962232493,0.443336,60588.0,60587.0,0.082538]
[1727962232694,0.3608,60588.0,60587.0,0.082538]
[1727962232887,0.2508906,60599.0,60585.0,1.0]
[1727962232888,0.2052,60599.0,60591.0,0.082532]
[1727962233190,0.082531,60592.0,60591.0,0.082532]
[1727962234387,0.1022,60599.0,60587.0,0.001]
[1727962234588,0.184722,60599.0,60598.0,0.082523]
[1727962234987,0.1022,60599.0,60598.0,0.082523]
[1727962235183,0.3608,60614.0,60598.0,0.3608]
[1727962235384,0.0983,60613.0,60610.0,0.082507]
[1727962235589,0.0983,60613.0,60612.0,0.082504]
[1727962235789,0.0983,60613.0,60608.0,0.44]
[1727962235790,0.082506,60611.0,60610.0,0.082506]
[1727962236190,0.443302,60614.0,60610.0,0.082506]
[1727962236491,0.443302,60614.0,60610.0,0.082507]
[1727962236492,0.001,60611.0,60610.0,0.082507]
[1727962236694,0.001,60611.0,60608.0,0.44]
[1727962236895,0.001,60611.0,60606.0,0.082512]
[1727962236896,0.001,60611.0,60603.0,0.522516]
[1727962237097,0.082519,60601.0,60598.0,0.3618]
[1727962237304,0.001,60611.0,60598.0,0.3618]
[1727962237792,0.08252,60601.0,60598.0,0.3618]
[1727962237999,0.082521,60599.0,60598.0,0.3608]
[1727962238192,0.082521,60599.0,60597.0,0.00247496]
[1727962238193,0.082523,60598.0,60597.0,0.00247496]
[1727962238389,0.180923,60598.0,60597.0,0.00247496]
[1727962239000,0.082532,60591.0,60590.0,0.3608]
[1727962240193,0.082531,60593.0,60590.0,0.3608]
[1727962240388,0.0994,60598.0,60590.0,0.3638]
[1727962240596,0.082527,60595.0,60590.0,0.3638]
[1727962240807,0.082532,60592.0,60590.0,0.3638]
[1727962241099,0.082527,60595.0,60590.0,0.3638]
[1727962241596,0.08253,60593.0,60590.0,0.3638]
[1727962241802,0.08253,60593.0,60590.0,0.3648]
[1727962241803,0.082532,60591.0,60590.0,0.3648]
[1727962241986,0.082532,60591.0,60573.0,0.00096]
[1727962241987,0.7216,60591.0,60573.0,0.00096]
[1727962242190,0.7216,60591.0,60570.0,0.08256]
[1727962242191,0.082552,60577.0,60570.0,0.08256]
[1727962242400,0.44,60581.0,60563.0,0.3608]
[1727962242606,0.44,60576.0,60563.0,0.3608]
[1727962242892,0.1054,60584.0,60572.0,0.082558]
[1727962242893,0.082551,60578.0,60572.0,0.082558]
[1727962243097,0.082546,60581.0,60574.0,0.082555]
[1727962243290,0.082546,60581.0,60563.0,0.3608]
[1727962243291,0.082553,60576.0,60569.0,0.082562]
[1727962243487,0.082546,60581.0,60573.0,0.011]
[1727962243689,0.00247714,60589.0,60579.0,0.44]
[1727962244090,0.082538,60587.0,60583.0,0.082542]
[1727962244489,0.00247714,60589.0,60579.0,0.44]
[1727962244689,0.00247714,60589.0,60585.0,0.08254]
[1727962245194,0.00247714,60589.0,60579.0,0.082548]
[1727962245390,0.082547,60581.0,60577.0,0.08255]
[1727962245597,0.00247714,60589.0,60577.0,0.08255]
[1727962245795,0.082548,60580.0,60577.0,0.08255]
[1727962246000,0.082548,60580.0,60579.0,0.082549]
[1727962246291,0.082548,60580.0,60579.0,0.084549]
[1727962246492,0.082539,60587.0,60583.0,0.082542]
[1727962246690,0.7216,60591.0,60579.0,0.442]
[1727962246903,0.082541,60585.0,60584.0,0.082541]
[1727962247202,0.002,60589.0,60579.0,0.8008]
[1727962247406,0.084535,60589.0,60588.0,0.082536]
[1727962247705,0.002,60589.0,60574.0,0.3608]
[1727962247894,0.082544,60583.0,60581.0,0.082545]
[1727962248099,0.082543,60584.0,60575.0,0.082554]
[1727962248409,0.46332001,60599.0,60578.0,0.44]
[1727962248700,0.001,60580.0,60579.0,0.082548]
[1727962248896,0.001,60580.0,60573.0,0.082556]
[1727962249096,0.001,60580.0,60566.0,0.00247618]
[1727962249097,0.082561,60572.0,60569.0,0.3608]
[1727962249296,0.082561,60570.0,60569.0,0.443362]
[1727962249598,0.082561,60570.0,60569.0,0.3608]
[1727962249796,0.082565,60567.0,60566.0,0.00247618]
[1727962250001,0.3608,60571.0,60566.0,0.00247618]
[1727962250304,0.3608,60571.0,60569.0,0.082562]
[1727962250505,0.3608,60571.0,60566.0,0.00247618]
[1727962250808,0.001,60570.0,60568.0,0.082563]
[1727962251196,0.001,60570.0,60569.0,0.082562]
[1727962251394,0.3608,60585.0,60569.0,0.082562]
[1727962251395,0.082546,60582.0,60579.0,0.082549]
[1727962251600,0.3608,60585.0,60569.0,0.082562]
[1727962251601,0.443341,60585.0,60582.0,0.082544]
[1727962252000,0.3608,60585.0,60584.0,0.082542]
[1727962252899,0.082551,60578.0,60575.0,0.082553]
[1727962253100,0.0992,60584.0,60567.0,0.44]
[1727962253295,0.082547,60580.0,60579.0,0.082547]
[1727962253495,0.3648,60585.0,60579.0,0.082548]
[1727962253496,0.3658,60585.0,60579.0,0.082548]
[1727962253697,0.082554,60576.0,60566.0,0.00247618]
[1727962253904,0.082543,60584.0,60566.0,0.00247618]
[1727962254103,0.082565,60568.0,60566.0,0.00247618]
[1727962254309,0.082565,60567.0,60566.0,0.00247618]
[1727962254506,0.0992,60567.0,60556.0,0.443379]
[1727962254705,0.0992,60567.0,60557.0,0.082578]
[1727962254706,0.3608,60559.0,60557.0,0.082578]
[1727962254914,0.31948361,60559.0,60557.0,0.082578]
[1727962255295,0.40206061,60559.0,60549.0,0.3608]
[1727962255500,0.31948361,60559.0,60549.0,0.3608]
[1727962255700,0.31948361,60559.0,60557.0,0.082579]
[1727962255997,0.44,60558.0,60546.0,0.56]
[1727962256319,0.522577,60558.0,60546.0,0.082593]
[1727962256604,0.522577,60558.0,60549.0,0.082589]
[1727962256605,0.082583,60555.0,60549.0,0.082589]
[1727962256807,0.44,60558.0,60549.0,0.082589]
[1727962256808,0.31948361,60559.0,60549.0,0.003]
[1727962257007,0.31948361,60559.0,60558.0,0.082577]
[1727962257206,0.31948361,60559.0,60549.0,0.003]
[1727962257408,0.31948361,60559.0,60550.0,0.082588]
[1727962257609,0.31948361,60559.0,60549.0,0.003]
[1727962257807,0.082582,60555.0,60551.0,0.082586]
[1727962258007,0.31948361,60559.0,60549.0,0.003]
[1727962258505,0.31948361,60559.0,60558.0,0.082577]
[1727962259713,0.32048361,60559.0,60558.0,0.082577]
[1727962259903,0.40305961,60559.0,60555.0,0.082581]
[1727962260110,0.40305961,60559.0,60558.0,0.082577]
[1727962260111,0.32048361,60559.0,60558.0,0.082577]
[1727962260611,0.32548361,60559.0,60558.0,0.083577]
[1727962261111,0.32548361,60559.0,60558.0,0.001]
[1727962261112,0.40805961,60559.0,60558.0,0.001]
[1727962261313,0.90345961,60559.0,60558.0,0.001]
[1727962261514,1.50845961,60559.0,60558.0,0.002]
[1727962261819,1.61065961,60559.0,60558.0,0.002]
[1727962262004,1.61065961,60559.0,60543.0,0.06576359]
[1727962262005,1.61065961,60559.0,60548.0,0.04938873]
[1727962262311,0.082585,60553.0,60546.0,0.082594]
[1727962262518,0.3608,60549.0,60541.0,0.05186624]
[1727962262811,0.082599,60542.0,60541.0,0.00247751]
[1727962263403,1.178119,60542.0,60528.0,0.3608]
[1727962263603,0.082617,60529.0,60528.0,0.3608]
[1727962263902,0.082617,60529.0,60519.0,0.06576359]
[1727962263903,0.44,60529.0,60519.0,0.04938873]
[1727962264114,0.3608,60520.0,60515.0,0.04938873]
[1727962264318,0.44,60516.0,60512.0,0.06956359]
[1727962264616,0.44,60516.0,60496.0,0.04938873]
[1727962264808,0.44,60516.0,60505.0,0.082649]
[1727962265007,0.082642,60511.0,60496.0,0.04938873]
[1727962265207,0.082642,60511.0,60502.0,0.082654]
[1727962265412,0.3608,60517.0,60497.0,0.44]
[1727962265605,0.001,60516.0,60512.0,0.013]
[1727962265809,0.083635,60516.0,60512.0,0.013]
[1727962266109,0.001,60516.0,60515.0,0.082636]
[1727962266607,0.001,60516.0,60512.0,0.013]
[1727962266810,0.082639,60513.0,60512.0,0.013]
[1727962267003,0.443439,60513.0,60512.0,0.013]
[1727962267207,1.45656,60513.0,60500.0,0.00247921]
[1727962267506,1.45656,60513.0,60485.0,0.1114]
[1727962267507,0.44,60501.0,60483.0,0.3608]
[1727962267807,0.44,60495.0,60483.0,0.3608]
[1727962268013,0.11162001,60512.0,60480.0,0.082684]
[1727962268014,0.3608,60484.0,60480.0,0.082684]
[1727962268309,0.082676,60486.0,60477.0,0.56]
[1727962268513,0.3608,60490.0,60477.0,0.56084]
[1727962268514,0.44,60484.0,60477.0,0.56084]
[1727962268715,0.44,60478.0,60477.0,0.00084]
[1727962268919,0.44,60478.0,60471.0,0.00248039]
[1727962268920,0.522687,60478.0,60471.0,0.00248039]
[1727962269115,0.522687,60478.0,60472.0,0.082695]
[1727962269413,0.522687,60478.0,60471.0,0.00248039]
[1727962269414,0.44,60478.0,60471.0,0.00248039]
[1727962269717,0.082689,60476.0,60471.0,0.00248039]
[1727962269918,0.31114455,60472.0,60471.0,0.00248039]
[1727962270220,0.25321316,60472.0,60471.0,0.09917639]
[1727962270410,0.25321316,60472.0,60471.0,0.01648039]
[1727962270909,0.084688,60478.0,60477.0,0.004]
[1727962271321,0.3608,60495.0,60490.0,0.08267]
[1727962271620,0.3608,60495.0,60476.0,0.3608]
[1727962271621,0.08515034,60491.0,60483.0,0.082679]
[1727962271917,0.00248134,60491.0,60484.0,0.56]
[1727962272139,0.44,60489.0,60476.0,0.3608]
[1727962272445,0.00248134,60491.0,60476.0,0.3608]
[1727962272446,0.082685,60479.0,60476.0,0.3608]
[1727962272731,0.08615134,60491.0,60471.0,0.01648039]
[1727962272732,0.522688,60477.0,60471.0,0.01648039]
[1727962272925,0.44,60477.0,60471.0,0.01648039]
[1727962273129,0.443475,60487.0,60471.0,0.01648039]
[1727962273130,0.44,60482.0,60471.0,0.01648039]
[1727962273326,0.44,60482.0,60476.0,0.014]
[1727962273716,0.883474,60487.0,60480.0,0.082683]
[1727962273915,0.3608,60487.0,60471.0,0.01648039]
[1727962274116,0.00348134,60491.0,60490.0,0.08267]
[1727962274418,0.00348134,60491.0,60479.0,0.8008]
[1727962274808,0.082671,60490.0,60479.0,0.3608]
[1727962275012,0.44,60488.0,60482.0,0.08268]
[1727962275330,0.44,60488.0,60479.0,0.3608]
[1727962275331,0.001,60489.0,60479.0,0.3608]
[1727962275724,0.001,60489.0,60488.0,0.082673]
[1727962276217,0.001,60491.0,60488.0,1.539433]
[1727962276516,0.3646,60509.0,60506.0,0.082648]
[1727962276517,0.3608,60509.0,60506.0,0.082648]
[1727962276717,0.00176,60512.0,60509.0,0.082644]
[1727962277022,0.00176,60512.0,60511.0,0.522642]
[1727962277215,0.0024804,60514.0,60513.0,0.082639]
[1727962277415,0.0024804,60514.0,60513.0,1.178399]
[1727962277618,0.0038,60532.0,60513.0,1.539199]
[1727962277942,0.0038,60532.0,60516.0,0.44]
[1727962278127,0.0038,60532.0,60511.0,0.082641]
[1727962278128,0.3608,60531.0,60511.0,0.082641]
[1727962278318,0.3608,60531.0,60512.0,0.00247871]
[1727962278517,0.082631,60519.0,60512.0,0.00247871]
[1727962278816,0.522639,60513.0,60512.0,0.00247871]
[1727962279211,0.443439,60513.0,60512.0,0.00247871]
[1727962279417,0.001,60514.0,60513.0,0.082639]
[1727962280643,0.004,60514.0,60513.0,0.082639]
[1727962280811,0.082639,60513.0,60512.0,0.00247871]
[1727962281012,0.082639,60513.0,60512.0,0.01647871]
[1727962281013,0.083639,60513.0,60512.0,0.01647871]
[1727962281224,0.579399,60513.0,60512.0,0.014]
[1727962281521,1.45756,60513.0,60496.0,0.082662]
[1727962281727,0.082652,60504.0,60497.0,0.08266]
[1727962281927,0.082655,60502.0,60497.0,0.08266]
[1727962282125,0.44,60506.0,60493.0,0.082666]
[1727962282126,0.08266,60498.0,60493.0,0.082666]
[1727962282318,0.082662,60496.0,60490.0,0.08267]
[1727962282519,0.082662,60496.0,60486.0,0.06576359]
[1727962282520,0.522663,60495.0,60486.0,0.04938873]
[1727962282724,0.082663,60495.0,60483.0,0.04938873]
[1727962283023,0.0974,60505.0,60495.0,0.082662]
[1727962283215,0.082656,60501.0,60495.0,0.082662]
[1727962283419,0.18005,60505.0,60498.0,0.082658]
[1727962283624,0.3608,60506.0,60494.0,0.00347947]
[1727962283838,0.3608,60506.0,60494.0,0.00247947]
[1727962283839,0.004,60495.0,60494.0,0.00247947]
[1727962284115,0.526663,60495.0,60494.0,0.00247947]
[1727962284613,0.526663,60495.0,60480.0,0.42656359]
[1727962284614,0.082676,60486.0,60484.0,0.04938873]
[1727962284819,0.082667,60493.0,60486.0,0.082675]
[1727962285334,0.447,60495.0,60494.0,0.082665]
[1727962285335,0.007,60495.0,60494.0,0.082665]
[1727962285632,0.007,60495.0,60480.0,0.3608]
[1727962285633,0.44,60495.0,60482.0,0.04938873]
[1727962285832,0.44,60495.0,60480.0,0.3608]
[1727962285833,0.522664,60495.0,60480.0,0.3608]
[1727962286131,0.0064805,60505.0,60494.0,0.082664]
[1727962286132,0.082658,60499.0,60494.0,0.082664]
[1727962286324,0.44,60501.0,60494.0,0.082664]
[1727962286533,0.08267,60490.0,60486.0,0.085675]
[1727962286923,0.082665,60494.0,60483.0,0.082679]
[1727962287227,0.082665,60494.0,60480.0,0.3708]
[1727962287228,0.082659,60498.0,60480.0,0.3708]
[1727962287422,0.082661,60497.0,60492.0,0.082666]
[1727962287725,0.082665,60494.0,60482.0,0.082681]
[1727962287931,0.44,60494.0,60480.0,0.3608]
[1727962288224,0.08267,60491.0,60484.0,0.082677]
[1727962288425,0.08267,60490.0,60480.0,0.3608]
[1727962288636,0.082668,60492.0,60485.0,0.082676]
[1727962288824,0.082669,60491.0,60481.0,0.082682]
[1727962289023,0.082673,60489.0,60484.0,0.082677]
[1727962289227,0.082666,60493.0,60483.0,0.007]
[1727962289532,0.082674,60488.0,60484.0,0.005]
[1727962289920,0.082666,60493.0,60484.0,0.005]
[1727962290420,0.522673,60488.0,60484.0,0.005]
[1727962290628,0.082677,60485.0,60484.0,0.005]
[1727962291728,0.443477,60485.0,60484.0,0.005]
[1727962292030,0.443477,60485.0,60483.0,0.006]
[1727962292031,0.082678,60484.0,60483.0,0.006]
[1727962292352,0.082678,60484.0,60473.0,0.06576359]
[1727962292353,0.082691,60475.0,60473.0,0.06576359]
[1727962292629,0.3608,60474.0,60471.0,0.04923611]
[1727962292926,0.522695,60472.0,60471.0,0.04923611]
[1727962293139,0.082702,60467.0,60465.0,0.42656359]
[1727962293321,0.522695,60472.0,60463.0,0.0024807]
[1727962293322,0.883495,60472.0,60464.0,0.08216275]
[1727962293520,0.883495,60472.0,60468.0,0.06569089]
[1727962293723,0.883495,60472.0,60469.0,0.06569089]
[1727962293724,0.8008,60472.0,60469.0,0.06569089]
[1727962293928,0.082698,60470.0,60469.0,0.06569089]
[1727962294118,0.082698,60470.0,60463.0,0.0851877]
[1727962294119,0.082699,60469.0,60468.0,0.06569089]
[1727962294315,0.082702,60467.0,60466.0,0.06569089]
[1727962294535,0.082706,60464.0,60463.0,0.05175297]
[1727962294825,0.082706,60464.0,60463.0,0.0024807]
[1727962295132,0.082706,60464.0,60458.0,0.06569089]
[1727962295133,1.178866,60464.0,60458.0,0.06569089]
[1727962295336,0.082725,60450.0,60449.0,0.06569089]
[1727962295628,0.082725,60450.0,60432.0,0.08216275]
[1727962295629,0.3608,60450.0,60432.0,0.08216275]
[1727962295831,0.3608,60459.0,60437.0,0.3608]
[1727962296023,0.3608,60459.0,60437.0,0.44296275]
[1727962296024,0.44,60456.0,60437.0,0.44296275]
[1727962296217,0.44,60449.0,60443.0,0.082734]
[1727962296419,0.44,60449.0,60438.0,0.1260916]
[1727962296420,0.44,60444.0,60438.0,0.08216275]
[1727962296731,0.441,60450.0,60438.0,0.082741]
[1727962296924,0.441,60450.0,60437.0,0.3688]
[1727962296925,0.44,60441.0,60437.0,0.3688]
[1727962297125,0.44,60441.0,60437.0,0.008]
[1727962297624,0.44,60441.0,60434.0,0.082746]
[1727962297931,0.44354,60439.0,60438.0,0.00099999]
[1727962298229,0.3608,60439.0,60424.0,0.08276]
[1727962298431,0.3608,60439.0,60438.0,0.082741]
[1727962298630,0.001,60441.0,60436.0,0.082744]
[1727962298943,0.082731,60446.0,60430.0,0.3608]
[1727962299135,0.08275,60432.0,60430.0,0.3608]
[1727962299321,0.001,60439.0,60430.0,0.3608]
[1727962299522,0.44,60438.0,60430.0,0.3608]
[1727962299732,0.08374,60439.0,60438.0,0.082741]
[1727962299733,0.001,60439.0,60438.0,0.082741]
[1727962299930,0.44,60440.0,60435.0,0.08216275]
[1727962300131,0.44,60440.0,60434.0,0.09116275]
[1727962300323,0.44,60435.0,60431.0,0.08216275]